bitfinex/quotes_BTCUSD_20251208
["timestamp","ask_amount","ask_price","bid_price","bid_amount"]
[1765219818599,0.25540649,90401.0,90400.0,7.316e-05]
[1765219819253,0.28315649,90401.0,90400.0,7.316e-05]
[1765219819426,0.28376936,90401.0,90400.0,7.316e-05]
[1765219819626,0.28376936,90401.0,90400.0,0.00107316]
[1765219819849,0.28376936,90401.0,90400.0,0.00207316]
[1765219820232,0.28376936,90401.0,90400.0,0.00107316]
[1765219820632,0.28376936,90401.0,90400.0,7.316e-05]
[1765219822119,0.28476936,90401.0,90400.0,7.316e-05]
[1765219822466,0.06353287,90401.0,90400.0,7.316e-05]
[1765219822883,0.28476936,90401.0,90400.0,7.316e-05]
[1765219823205,0.25701936,90401.0,90400.0,7.316e-05]
[1765219823403,0.22384936,90401.0,90400.0,7.316e-05]
[1765219824633,0.24305936,90401.0,90400.0,7.316e-05]
[1765219825050,0.24205936,90401.0,90400.0,7.316e-05]
[1765219825474,0.26980936,90401.0,90400.0,0.00207316]
[1765219827083,0.29200535,90401.0,90400.0,0.00207316]
[1765219827534,0.26980936,90401.0,90400.0,0.00207316]
[1765219827741,0.29200535,90401.0,90400.0,0.00207316]
[1765219828162,0.29200535,90401.0,90400.0,0.00107316]
[1765219828373,0.26980936,90401.0,90400.0,7.316e-05]
[1765219828588,0.2801327,90401.0,90400.0,7.316e-05]
[1765219828802,0.01032334,90401.0,90400.0,0.03176316]
[1765219829014,0.01106133,90405.0,90401.0,0.22123504]
[1765219829015,0.24261355,90405.0,90401.0,0.22123504]
[1765219829289,0.01032334,90404.0,90403.0,0.22123159]
[1765219829508,0.22120902,90413.0,90400.0,7.316e-05]
[1765219829509,0.01106047,90412.0,90407.0,0.01879]
[1765219829723,0.01106023,90414.0,90406.0,0.01106121]
[1765219829724,0.0103381,90411.0,90410.0,0.22121446]
[1765219830144,0.23226097,90416.0,90413.0,0.22120566]
[1765219830360,0.01033821,90415.0,90414.0,0.22120352]
[1765219831460,0.01033821,90415.0,90412.0,0.01106047]
[1765219831677,0.01033821,90414.0,90411.0,0.2212117]
[1765219831890,0.23154668,90413.0,90410.0,0.22121443]
[1765219832107,0.01033821,90412.0,90410.0,0.23227518]
[1765219832320,0.01033821,90414.0,90413.0,0.22120712]
[1765219832539,0.01105974,90418.0,90414.0,0.01106023]
[1765219832742,0.01105974,90418.0,90414.0,0.23226016]
[1765219832743,0.01033792,90417.0,90414.0,0.23226016]
[1765219832957,0.0213979,90416.0,90413.0,0.01106035]
[1765219833126,0.23225428,90420.0,90413.0,0.01106035]
[1765219833127,0.001,90414.0,90413.0,0.23226714]
[1765219833491,0.01133792,90414.0,90413.0,0.23226714]
[1765219833691,0.01133792,90414.0,90413.0,0.25105714]
[1765219834507,0.01033792,90414.0,90413.0,0.25105714]
[1765219834706,0.01033792,90414.0,90411.0,0.1566606]
[1765219834707,0.22120957,90412.0,90411.0,0.1456]
[1765219834909,0.22120957,90412.0,90386.0,0.01106366]
[1765219834910,0.22123649,90401.0,90387.0,0.22127074]
[1765219835114,0.27690059,90401.0,90385.0,0.01106378]
[1765219835343,0.30465059,90401.0,90382.0,0.01106414]
[1765219835548,0.30465059,90401.0,90386.0,0.01106366]
[1765219835752,0.30465059,90401.0,90387.0,0.01106353]
[1765219836231,0.30465059,90401.0,90388.0,0.01106341]
[1765219836574,0.30565059,90401.0,90388.0,0.01106341]
[1765219837012,0.30565059,90401.0,90388.0,0.23233089]
[1765219837288,0.30565059,90401.0,90388.0,0.01106341]
[1765219837495,0.30565059,90401.0,90388.0,0.23233154]
[1765219838496,0.30565059,90401.0,90384.0,0.23233712]
[1765219838698,0.30565059,90401.0,90382.0,0.01106414]
[1765219838925,0.30565059,90401.0,90383.0,0.23234308]
[1765219839473,0.30565059,90401.0,90384.0,0.0110639]
[1765219839673,0.30565059,90401.0,90383.0,0.01106402]
[1765219840454,0.30565059,90401.0,90385.0,0.01106378]
[1765219840659,0.30565059,90401.0,90384.0,0.0110639]
[1765219840863,0.30565059,90401.0,90389.0,0.01106329]
[1765219841071,0.30565059,90401.0,90398.0,0.02350219]
[1765219841072,0.01134123,90401.0,90398.0,0.02350219]
[1765219841221,0.01134123,90401.0,90400.0,0.24010209]
[1765219841640,0.01134123,90401.0,90400.0,0.26933209]
[1765219841987,0.001,90401.0,90400.0,0.26933209]
[1765219842333,0.01034123,90410.0,90408.0,0.22121881]
[1765219842537,0.01034123,90410.0,90401.0,0.01106182]
[1765219842538,0.22122471,90406.0,90400.0,0.02086316]
[1765219842840,0.22123649,90401.0,90400.0,0.00207316]
[1765219843090,0.22123502,90402.0,90400.0,0.00207316]
[1765219843639,0.22123649,90401.0,90400.0,0.00207316]
[1765219843846,0.38322919,90401.0,90400.0,0.00207316]
[1765219844151,0.29031233,90401.0,90400.0,7.316e-05]
[1765219844384,0.27996649,90401.0,90400.0,7.316e-05]
[1765219845218,0.29031344,90401.0,90400.0,7.316e-05]
[1765219845417,0.27996649,90401.0,90400.0,7.316e-05]
[1765219846084,0.22123502,90402.0,90400.0,7.316e-05]
[1765219846287,0.01106157,90403.0,90401.0,0.22123526]
[1765219846489,0.01034713,90405.0,90403.0,0.22123159]
[1765219846665,0.22123649,90401.0,90400.0,7.316e-05]
[1765219847378,0.22123649,90401.0,90400.0,0.00107316]
[1765219847665,0.28157936,90401.0,90400.0,0.00107316]
[1765219847866,0.31412177,90401.0,90400.0,7.316e-05]
[1765219848137,0.31412177,90401.0,90400.0,0.00207316]
[1765219848483,0.31412177,90401.0,90400.0,7.316e-05]
[1765219848685,0.31412177,90401.0,90400.0,0.00107316]
[1765219848934,0.31512177,90401.0,90400.0,7.316e-05]
[1765219849069,0.29292578,90401.0,90400.0,7.316e-05]
[1765219849424,0.23619578,90401.0,90400.0,7.316e-05]
[1765219849622,0.01495929,90401.0,90400.0,7.316e-05]
[1765219849826,0.003,90401.0,90400.0,0.23867209]
[1765219850270,0.002,90401.0,90400.0,0.23867209]
[1765219850420,0.002,90401.0,90400.0,0.26823209]
[1765219850881,0.01752,90405.0,90404.0,0.22122914]
[1765219852176,0.02858133,90405.0,90402.0,0.23229548]
[1765219852399,0.22123649,90401.0,90400.0,7.316e-05]
[1765219852600,0.25161649,90401.0,90400.0,7.316e-05]
[1765219852823,0.28157936,90401.0,90400.0,7.316e-05]
[1765219853618,0.30377535,90401.0,90400.0,7.316e-05]
[1765219854179,0.31213542,90401.0,90400.0,7.316e-05]
[1765219854608,0.31313542,90401.0,90400.0,7.316e-05]
[1765219854877,0.28557936,90401.0,90400.0,7.316e-05]
[1765219855093,0.25722936,90401.0,90400.0,7.316e-05]
[1765219855538,0.004,90401.0,90400.0,0.22131209]
[1765219855767,0.001,90401.0,90400.0,0.26723209]
[1765219856421,0.01752,90405.0,90404.0,0.22122914]
[1765219856645,0.01752,90405.0,90403.0,0.22123112]
[1765219856849,0.2212296,90404.0,90401.0,0.22123607]
[1765219857090,0.02858133,90405.0,90402.0,0.22123327]
[1765219857291,0.24980847,90405.0,90402.0,0.23229497]
[1765219857464,0.24980847,90405.0,90403.0,0.1456]
[1765219857668,0.24980823,90405.0,90403.0,0.1456]
[1765219858867,0.01752,90405.0,90403.0,0.1456]
[1765219859600,0.01752,90405.0,90403.0,0.36683097]
[1765219859778,0.01752,90405.0,90403.0,0.1456]
[1765219859984,0.01752,90405.0,90403.0,0.36683146]
[1765219860482,0.01752,90405.0,90403.0,0.1456]
[1765219860667,0.01106109,90407.0,90403.0,0.15666157]
[1765219860883,0.22122914,90404.0,90403.0,0.1456]
[1765219861088,0.262148,90404.0,90403.0,0.1456]
[1765219861270,0.288898,90404.0,90403.0,0.1456]
[1765219863125,0.289898,90404.0,90403.0,0.1456]
[1765219863599,0.24343248,90401.0,90400.0,7.316e-05]
[1765219863803,0.26215535,90401.0,90400.0,7.316e-05]
[1765219864129,0.28890535,90401.0,90400.0,7.316e-05]
[1765219864771,0.30191535,90401.0,90400.0,7.316e-05]
[1765219865163,0.30491535,90401.0,90400.0,7.316e-05]
[1765219865375,0.30591535,90401.0,90400.0,7.316e-05]
[1765219865584,0.40730041,90401.0,90400.0,7.316e-05]
[1765219865804,0.41765592,90401.0,90400.0,7.316e-05]
[1765219866818,0.30591535,90401.0,90400.0,7.316e-05]
[1765219867477,0.32343535,90401.0,90400.0,7.316e-05]
[1765219867890,0.32043535,90401.0,90400.0,7.316e-05]
[1765219868091,0.30291535,90401.0,90400.0,7.316e-05]
[1765219868296,0.31943535,90401.0,90400.0,7.316e-05]
[1765219869335,0.42217241,90401.0,90400.0,7.316e-05]
[1765219870120,0.42317241,90401.0,90400.0,7.316e-05]
[1765219870488,0.29823936,90401.0,90400.0,7.316e-05]
[1765219870820,0.32143535,90401.0,90400.0,7.316e-05]
[1765219871037,0.32043535,90401.0,90400.0,7.316e-05]
[1765219871240,0.32343535,90401.0,90400.0,7.316e-05]
[1765219871716,0.32043535,90401.0,90400.0,7.316e-05]
[1765219871926,0.32143535,90401.0,90400.0,7.316e-05]
[1765219872330,0.42437241,90401.0,90400.0,7.316e-05]
[1765219872487,0.42337241,90401.0,90400.0,7.316e-05]
[1765219872835,0.42437241,90401.0,90400.0,7.316e-05]
[1765219873135,0.33078903,90401.0,90400.0,7.316e-05]
[1765219873348,0.33278903,90401.0,90400.0,7.316e-05]
[1765219873482,0.33078903,90401.0,90400.0,7.316e-05]
[1765219873686,0.39331202,90401.0,90400.0,7.316e-05]
[1765219873894,0.39731202,90401.0,90400.0,7.316e-05]
[1765219874118,0.5124472,90401.0,90400.0,7.316e-05]
[1765219874335,0.5114472,90401.0,90400.0,7.316e-05]
[1765219874511,0.5124472,90401.0,90400.0,7.316e-05]
[1765219874716,0.49025121,90401.0,90400.0,7.316e-05]
[1765219874924,0.34144493,90401.0,90400.0,7.316e-05]
[1765219875250,0.31259304,90401.0,90400.0,7.316e-05]
[1765219875565,0.30223936,90401.0,90400.0,7.316e-05]
[1765219876139,0.29723936,90401.0,90400.0,7.316e-05]
[1765219876335,0.31943535,90401.0,90400.0,7.316e-05]
[1765219876541,0.32043535,90401.0,90400.0,7.316e-05]
[1765219876742,0.33078921,90401.0,90400.0,7.316e-05]
[1765219876987,0.43466166,90401.0,90400.0,7.316e-05]
[1765219877160,0.43366166,90401.0,90400.0,7.316e-05]
[1765219877589,0.33278921,90401.0,90400.0,7.316e-05]
[1765219877815,0.32978921,90401.0,90400.0,7.316e-05]
[1765219878019,0.7153122,90401.0,90400.0,7.316e-05]
[1765219878228,0.74316752,90401.0,90400.0,7.316e-05]
[1765219878675,0.74416752,90401.0,90400.0,7.316e-05]
[1765219878905,0.8526468,90401.0,90400.0,7.316e-05]
[1765219879112,0.87114258,90401.0,90400.0,7.316e-05]
[1765219881079,0.8526468,90401.0,90400.0,7.316e-05]
[1765219881504,5.8526468,90401.0,90400.0,7.316e-05]
[1765219881759,4.5623468,90401.0,90400.0,7.316e-05]
[1765219882002,4.5663468,90401.0,90400.0,7.316e-05]
[1765219882175,1.6292468,90401.0,90400.0,7.316e-05]
[1765219882387,1.6112468,90401.0,90400.0,7.316e-05]
[1765219882791,1.5948468,90401.0,90400.0,7.316e-05]
[1765219883000,1.5908468,90401.0,90400.0,7.316e-05]
[1765219883524,1.5998468,90401.0,90400.0,7.316e-05]
[1765219883674,1.6069468,90401.0,90400.0,7.316e-05]
[1765219884335,1.64661143,90401.0,90400.0,7.316e-05]
[1765219884681,1.66031143,90401.0,90400.0,7.316e-05]
[1765219885108,1.6206468,90401.0,90400.0,7.316e-05]
[1765219885812,5.8606468,90401.0,90400.0,7.316e-05]
[1765219887148,5.86712328,90401.0,90400.0,7.316e-05]
[1765219887347,5.90678053,90401.0,90400.0,7.316e-05]
[1765219887545,3.41468053,90401.0,90400.0,7.316e-05]
[1765219887772,0.78078125,90401.0,90400.0,7.316e-05]
[1765219887948,0.758644,90401.0,90400.0,7.316e-05]
[1765219888933,0.69612101,90401.0,90400.0,7.316e-05]
[1765219889128,0.68064453,90401.0,90400.0,7.316e-05]
[1765219889330,0.7063953,90401.0,90400.0,7.316e-05]
[1765219889449,0.77391829,90401.0,90400.0,7.316e-05]
[1765219889651,0.88539757,90401.0,90400.0,7.316e-05]
[1765219890470,0.85562496,90401.0,90400.0,7.316e-05]
[1765219891489,5.89528221,90401.0,90400.0,7.316e-05]
[1765219891721,5.85562496,90401.0,90400.0,7.316e-05]
[1765219894283,2.56192496,90401.0,90400.0,7.316e-05]
[1765219894548,4.11102496,90401.0,90400.0,7.316e-05]
[1765219894751,2.74332496,90401.0,90400.0,7.316e-05]
[1765219895177,2.71912496,90401.0,90400.0,7.316e-05]
[1765219895433,1.85812496,90401.0,90400.0,7.316e-05]
[1765219895697,1.84942496,90401.0,90400.0,7.316e-05]
[1765219896622,1.86492496,90401.0,90400.0,7.316e-05]
[1765219896845,0.36162269,90401.0,90400.0,7.316e-05]
[1765219897057,0.33776737,90401.0,90400.0,7.316e-05]
[1765219897262,0.66076737,90401.0,90400.0,7.316e-05]
[1765219897478,0.68462818,90401.0,90400.0,7.316e-05]
[1765219897695,0.66077286,90401.0,90400.0,7.316e-05]
[1765219897895,0.63857687,90401.0,90400.0,7.316e-05]
[1765219898842,0.63557687,90401.0,90400.0,7.316e-05]
[1765219899042,0.71259963,90401.0,90400.0,7.316e-05]
[1765219899252,0.73079562,90401.0,90400.0,7.316e-05]
[1765219899459,0.77112262,90401.0,90400.0,7.316e-05]
[1765219900136,0.77012262,90401.0,90400.0,7.316e-05]
[1765219900596,0.79231861,90401.0,90400.0,7.316e-05]
[1765219900790,0.79395101,90401.0,90400.0,7.316e-05]
[1765219900989,5.85584018,90401.0,90400.0,7.316e-05]
[1765219901232,5.81615268,90401.0,90400.0,7.316e-05]
[1765219901624,5.82015268,90401.0,90400.0,7.316e-05]
[1765219901828,5.81815268,90401.0,90400.0,7.316e-05]
[1765219902029,1.78735268,90401.0,90400.0,7.316e-05]
[1765219902231,1.63346177,90401.0,90400.0,7.316e-05]
[1765219903193,4.31296177,90401.0,90400.0,7.316e-05]
[1765219903366,4.31296177,90401.0,90354.0,0.01106757]
[1765219903367,0.23240473,90360.0,90357.0,0.22134319]
[1765219903694,0.01752,90359.0,90358.0,0.23240877]
[1765219903963,0.01752,90359.0,90357.0,9.469e-05]
[1765219904166,0.22134177,90358.0,90357.0,9.469e-05]
[1765219904321,0.01752,90359.0,90357.0,9.469e-05]
[1765219904717,0.22134177,90358.0,90357.0,0.00309469]
[1765219905000,0.22134177,90358.0,90357.0,9.469e-05]
[1765219905198,0.23886146,90359.0,90357.0,0.00409469]
[1765219905396,0.22134177,90358.0,90357.0,0.00509469]
[1765219905624,0.23886146,90359.0,90357.0,0.00509469]
[1765219905763,0.23886146,90359.0,90357.0,0.00409469]
[1765219905963,0.23886146,90359.0,90357.0,9.469e-05]
[1765219906189,0.23886146,90359.0,90357.0,0.00109469]
[1765219906439,0.23886146,90359.0,90357.0,0.00509469]
[1765219906621,0.23886146,90359.0,90357.0,0.00409469]
[1765219906849,0.22134177,90358.0,90357.0,0.00509469]
[1765219907470,0.23886177,90358.0,90357.0,0.00509469]
[1765219907716,0.23886177,90358.0,90357.0,0.00109469]
[1765219907894,0.25470177,90358.0,90357.0,0.00509469]
[1765219908296,0.25470177,90358.0,90357.0,0.00409469]
[1765219908497,0.25470177,90358.0,90357.0,0.00509469]
[1765219910533,0.28054177,90358.0,90357.0,0.00509469]
[1765219911724,0.25470177,90358.0,90357.0,0.00509469]
[1765219912085,0.23886177,90358.0,90357.0,0.00509469]
[1765219912510,0.01752,90358.0,90357.0,0.00509469]
[1765219913112,0.23886177,90358.0,90357.0,0.00509469]
[1765219913545,0.01752,90358.0,90357.0,0.22643891]
[1765219914860,0.01752,90358.0,90357.0,0.00509469]
[1765219915040,0.23886177,90358.0,90357.0,0.00509469]
[1765219915445,0.28054177,90358.0,90357.0,0.00509469]
[1765219915624,0.30435063,90358.0,90357.0,0.00509469]
[1765219915825,0.31470213,90358.0,90357.0,0.00509469]
[1765219916884,0.31470213,90358.0,90357.0,0.00109469]
[1765219917308,0.31470213,90358.0,90357.0,0.00209469]
[1765219917608,0.80466404,90358.0,90357.0,0.00209469]
[1765219917799,0.82849604,90358.0,90357.0,0.00209469]
[1765219919456,0.80466404,90358.0,90357.0,0.00209469]
[1765219919830,0.80466404,90358.0,90357.0,9.469e-05]
[1765219920184,0.80666404,90358.0,90357.0,9.469e-05]
[1765219920614,0.74414105,90358.0,90357.0,9.469e-05]
[1765219920818,0.24247464,90358.0,90357.0,9.469e-05]
[1765219921015,0.30608063,90358.0,90357.0,9.469e-05]
[1765219921418,0.28188464,90358.0,90357.0,9.469e-05]
[1765219921820,0.28288464,90358.0,90357.0,9.469e-05]
[1765219922089,0.30508063,90358.0,90357.0,9.469e-05]
[1765219922223,0.30608063,90358.0,90357.0,9.469e-05]
[1765219922437,0.34467927,90358.0,90357.0,9.469e-05]
[1765219922946,0.34267927,90358.0,90357.0,9.469e-05]
[1765219923350,0.34167927,90358.0,90357.0,9.469e-05]
[1765219923698,0.34267927,90358.0,90357.0,9.469e-05]
[1765219924016,0.34467927,90358.0,90357.0,9.469e-05]
[1765219925856,0.30608063,90358.0,90357.0,9.469e-05]
[1765219926121,0.30408063,90358.0,90357.0,9.469e-05]
[1765219926728,0.30508063,90358.0,90357.0,9.469e-05]
[1765219927726,0.62808063,90358.0,90357.0,9.469e-05]
[1765219928116,0.22495464,90358.0,90357.0,9.469e-05]
[1765219928456,0.22495464,90358.0,90357.0,0.01666469]
[1765219928457,0.24086177,90358.0,90357.0,0.01666469]
[1765219928575,0.01952,90358.0,90357.0,0.26127891]
[1765219929005,0.001,90358.0,90357.0,0.26127891]
[1765219929425,0.01752,90360.0,90359.0,0.22133932]
[1765219929630,0.01752,90360.0,90359.0,0.23790932]
[1765219929826,0.01106525,90373.0,90370.0,0.01106561]
[1765219930025,0.01752,90372.0,90369.0,0.01106574]
[1765219930199,0.01752,90372.0,90370.0,0.23317217]
[1765219930408,0.01752,90372.0,90371.0,0.01657]
[1765219930611,0.01752,90372.0,90368.0,0.01106586]
[1765219930612,0.22132233,90366.0,90359.0,0.01706696]
[1765219930812,0.01106574,90369.0,90359.0,0.01706696]
[1765219930813,0.23238139,90369.0,90362.0,0.01186]
[1765219931039,0.23238844,90366.0,90362.0,0.02292659]
[1765219931207,0.23238399,90368.0,90364.0,0.01106635]
[1765219931415,0.23238399,90368.0,90364.0,0.23239186]
[1765219931638,0.01106598,90367.0,90364.0,0.01106635]
[1765219931834,0.01106598,90367.0,90362.0,0.02292659]
[1765219931835,0.22132489,90365.0,90362.0,0.02292659]
[1765219932137,0.22132721,90364.0,90362.0,0.01186]
[1765219932314,0.0110661,90366.0,90362.0,0.01186]
[1765219932315,0.0110661,90366.0,90362.0,0.01106659]
[1765219932512,0.0110661,90366.0,90362.0,0.23239848]
[1765219932850,0.01106623,90365.0,90361.0,0.24377958]
[1765219933027,0.01106561,90370.0,90361.0,0.24377958]
[1765219933028,0.23238103,90369.0,90364.0,0.22132656]
[1765219933380,0.2323835,90368.0,90365.0,0.01106623]
[1765219933731,0.2323835,90368.0,90365.0,0.23239039]
[1765219934114,0.23239085,90365.0,90364.0,0.001]
[1765219934318,0.25004372,90365.0,90364.0,0.005]
[1765219934529,0.64900236,90365.0,90364.0,0.005]
[1765219934705,0.68152949,90365.0,90364.0,0.005]
[1765219935154,0.72024181,90365.0,90364.0,0.005]
[1765219935472,0.54434177,90358.0,90357.0,9.469e-05]
[1765219935786,0.61377063,90358.0,90357.0,9.469e-05]
[1765219935918,0.63812063,90358.0,90357.0,9.469e-05]
[1765219936563,0.63912063,90358.0,90357.0,9.469e-05]
[1765219936917,0.64012063,90358.0,90357.0,9.469e-05]
[1765219937632,0.71710581,90358.0,90357.0,9.469e-05]
[1765219938277,0.64012063,90358.0,90357.0,9.469e-05]
[1765219939254,0.62825459,90358.0,90357.0,9.469e-05]
[1765219939493,0.65045058,90358.0,90357.0,9.469e-05]
[1765219939755,0.62825459,90358.0,90357.0,9.469e-05]
[1765219939962,0.65045058,90358.0,90357.0,9.469e-05]
[1765219940207,0.82145285,90358.0,90357.0,9.469e-05]
[1765219942663,0.84524329,90358.0,90357.0,9.469e-05]
[1765219942862,5.87504591,90358.0,90357.0,9.469e-05]
[1765219943065,5.84524329,90358.0,90357.0,9.469e-05]
[1765219943266,5.84524329,90358.0,90322.0,0.00023854]
[1765219943267,0.24362353,90323.0,90322.0,0.00023854]
[1765219943469,0.31330353,90323.0,90322.0,0.00033324]
[1765219943888,0.35201585,90323.0,90322.0,0.00033324]
[1765219944640,0.24923754,90323.0,90322.0,0.00033324]
[1765219944854,0.26679754,90323.0,90322.0,0.00033324]
[1765219945712,0.29114754,90323.0,90322.0,0.00033324]
[1765219946127,0.29114754,90323.0,90322.0,0.00233324]
[1765219946315,0.24923754,90323.0,90322.0,0.00233324]
[1765219946647,0.25075754,90323.0,90322.0,0.00233324]
[1765219947179,0.22142754,90323.0,90322.0,0.00233324]
[1765219947510,0.23898754,90323.0,90322.0,0.00233324]
[1765219948411,0.22142754,90323.0,90322.0,0.00233324]
[1765219948606,0.23898754,90323.0,90322.0,0.00233324]
[1765219950916,0.22142754,90323.0,90322.0,0.00233324]
[1765219951120,0.23898754,90323.0,90322.0,0.00233324]
[1765219952448,0.01107113,90325.0,90322.0,0.00233324]
[1765219952651,0.01756,90323.0,90322.0,0.00233324]
[1765219952797,0.23898754,90323.0,90322.0,0.00233324]
[1765219953692,0.67665618,90323.0,90322.0,0.00233324]
[1765219953891,0.68805618,90323.0,90322.0,0.00233324]
[1765219954105,0.66586019,90323.0,90322.0,0.00233324]
[1765219957188,0.68805618,90323.0,90322.0,0.00233324]
[1765219957399,0.75057917,90323.0,90322.0,0.00233324]
[1765219957547,0.76085672,90323.0,90322.0,0.00233324]
[1765219958461,0.76085343,90323.0,90322.0,0.00033324]
[1765219958800,0.76185343,90323.0,90322.0,0.00033324]
[1765219959199,0.76285343,90323.0,90322.0,0.00033324]
[1765219960134,0.74529343,90323.0,90322.0,0.00033324]
[1765219960276,0.76285343,90323.0,90322.0,0.00033324]
[1765219966116,0.78656966,90323.0,90322.0,0.00033324]
[1765219966640,0.73609988,90323.0,90322.0,0.00033324]
[1765219966847,0.73609988,90323.0,90310.0,1e-08]
[1765219966848,0.24365295,90311.0,90310.0,1e-08]
[1765219967181,0.62920046,90301.0,90300.0,0.0002]
[1765219967380,0.62920046,90301.0,90300.0,0.00058766]
[1765219967381,0.75409744,90301.0,90300.0,0.00058766]
[1765219967582,0.56669955,90292.0,90280.0,0.0002]
[1765219967794,0.62227731,90292.0,90280.0,0.0002]
[1765219967961,0.7094103,90292.0,90280.0,0.0002]
[1765219968160,0.72823047,90292.0,90280.0,0.0002]
[1765219968351,0.83670975,90292.0,90280.0,0.0002]
[1765219968881,0.83670975,90292.0,90291.0,0.00109]
[1765219969293,0.6918503,90292.0,90291.0,0.00109]
[1765219969602,0.7094103,90292.0,90291.0,0.00109]
[1765219970030,0.7094103,90292.0,90291.0,0.00509]
[1765219970229,0.7094103,90292.0,90291.0,0.00409]
[1765219970477,0.7104103,90292.0,90291.0,0.00409]
[1765219970691,0.7104103,90292.0,90291.0,9e-05]
[1765219971047,0.7124103,90292.0,90291.0,9e-05]
[1765219971664,0.67265431,90292.0,90291.0,9e-05]
[1765219971864,0.7124103,90292.0,90291.0,9e-05]
[1765219972366,0.64988731,90292.0,90291.0,9e-05]
[1765219972572,0.64988547,90292.0,90291.0,9e-05]
[1765219972972,0.64988547,90292.0,90291.0,0.00101469]
[1765219972973,0.75836475,90292.0,90291.0,0.00101469]
[1765219973423,0.73616876,90292.0,90291.0,0.00101469]
[1765219973588,0.74080475,90292.0,90291.0,0.00101469]
[1765219973790,0.75836475,90292.0,90291.0,0.00101469]
[1765219973989,0.61012948,90292.0,90291.0,0.00101469]
[1765219974201,0.25403114,90292.0,90291.0,0.00101469]
[1765219974400,0.29440114,90292.0,90291.0,0.00101469]
[1765219974665,0.27684114,90292.0,90291.0,0.00101469]
[1765219974915,0.29340114,90292.0,90291.0,0.00101469]
[1765219975324,0.37147515,90292.0,90291.0,0.00101469]
[1765219975465,0.39367114,90292.0,90291.0,0.00101469]
[1765219976227,0.29340114,90292.0,90291.0,0.00101469]
[1765219976426,0.29140114,90292.0,90291.0,0.00101469]
[1765219976859,0.29240114,90292.0,90291.0,0.00201469]
[1765219977059,0.31459713,90292.0,90291.0,0.00201469]
[1765219977270,0.31359713,90292.0,90291.0,0.00201469]
[1765219977561,0.29603713,90292.0,90291.0,0.00201469]
[1765219977781,0.29140114,90292.0,90291.0,0.00201469]
[1765219978327,0.00038758,90292.0,90291.0,0.00201469]
[1765219978533,0.22189114,90292.0,90291.0,0.00201469]
[1765219978733,0.01794758,90292.0,90291.0,0.00201469]
[1765219979118,0.23945114,90292.0,90291.0,0.00201469]
[1765219979527,0.01794758,90292.0,90291.0,0.2225207]
[1765219979904,0.01794758,90292.0,90291.0,0.2697707]
[1765219980086,0.01794758,90292.0,90291.0,0.2637707]
[1765219980681,0.01794758,90292.0,90291.0,0.2398207]
[1765219981030,0.27899114,90292.0,90291.0,0.00701469]
[1765219981226,0.27899114,90292.0,90291.0,0.00601469]
[1765219981445,0.30118713,90292.0,90291.0,0.00601469]
[1765219981900,0.62418713,90292.0,90291.0,0.00601469]
[1765219982076,0.64453213,90292.0,90291.0,0.00601469]
[1765219982281,0.75301141,90292.0,90291.0,0.00601469]
[1765219982507,0.75301141,90292.0,90291.0,0.00301469]
[1765219982716,0.8155344,90292.0,90291.0,0.00301469]
[1765219982917,0.8155344,90292.0,90291.0,0.00201469]
[1765219983503,0.8155344,90292.0,90291.0,0.00101469]
[1765219983858,0.8175344,90292.0,90291.0,0.00101469]
[1765219984052,0.8195344,90292.0,90291.0,0.00101469]
[1765219984398,0.84331824,90292.0,90291.0,0.00101469]
[1765219985483,0.84331824,90292.0,90280.0,0.0002]
[1765219985484,0.62924953,90281.0,90280.0,0.0002]
[1765219985635,0.67278937,90281.0,90280.0,0.0002]
[1765219985838,0.69665937,90281.0,90280.0,0.0002]
[1765219986060,0.69665937,90281.0,90280.0,0.00052821]
[1765219987020,0.69665937,90281.0,90280.0,0.00152821]
[1765219987220,0.7929728,90281.0,90280.0,0.00152821]
[1765219987420,0.81516879,90281.0,90280.0,0.00152821]
[1765219987597,0.83895496,90281.0,90280.0,0.00152821]
[1765219987827,0.83895496,90281.0,90270.0,0.0002]
[1765219987828,0.62927407,90271.0,90270.0,0.0002]
[1765219988074,0.62927407,90271.0,90260.0,0.0002]
[1765219988075,0.62929862,90261.0,90260.0,0.0002]
[1765219988269,0.76014175,90261.0,90260.0,0.0002]
[1765219988437,0.78401175,90261.0,90260.0,0.0002]
[1765219988651,0.78401175,90261.0,90260.0,0.00079692]
[1765219989201,0.7860122,90261.0,90260.0,0.00079692]
[1765219989610,0.7870122,90261.0,90260.0,0.00079692]
[1765219990428,0.7880122,90261.0,90260.0,0.00079692]
[1765219991736,0.76581621,90261.0,90260.0,0.00079692]
[1765219991939,0.7880122,90261.0,90260.0,0.00079692]
[1765219992119,0.76581621,90261.0,90260.0,0.00079692]
[1765219992344,0.8117301,90261.0,90260.0,0.00079692]
[1765219993220,0.8107301,90261.0,90260.0,0.00079692]
[1765219993569,0.8147301,90261.0,90260.0,0.00079692]
[1765219993737,0.8237301,90261.0,90260.0,0.00179692]
[1765219995026,0.62932317,90251.0,90250.0,0.0002]
[1765219995252,0.77141054,90251.0,90250.0,0.0002]
[1765219995585,0.79571054,90251.0,90250.0,0.0002]
[1765219996103,0.79871054,90251.0,90250.0,0.0002]
[1765219996509,0.78251455,90251.0,90250.0,0.0002]
[1765219996712,0.80471054,90251.0,90250.0,0.0002]
[1765219996955,0.80471054,90251.0,90240.0,0.0002]
[1765219996956,0.22162874,90241.0,90240.0,0.0002]
[1765219997142,0.34959756,90241.0,90240.0,0.0002]
[1765219997434,0.69689756,90241.0,90240.0,0.0002]
[1765219998316,0.69889756,90241.0,90240.0,0.0002]
[1765219998862,0.70189756,90241.0,90240.0,0.0002]
[1765219999085,0.84723281,90241.0,90240.0,0.0002]
[1765220000124,0.6071763,90231.0,90230.0,1e-08]
[1765220000300,0.68415213,90231.0,90230.0,1e-08]
[1765220000504,0.70845213,90231.0,90230.0,1e-08]
[1765220000731,0.81693141,90231.0,90230.0,1e-08]
[1765220000880,0.81693141,90231.0,90230.0,0.00089578]
[1765220001084,0.83444277,90231.0,90230.0,0.00089578]
[1765220001319,0.83483011,90231.0,90230.0,0.00089578]
[1765220001739,0.72635083,90231.0,90230.0,0.00089578]
[1765220001968,0.73535083,90231.0,90230.0,0.00089578]
[1765220002332,0.72490995,90231.0,90230.0,0.00089578]
[1765220002528,0.73090995,90231.0,90230.0,0.00089578]
[1765220003145,0.72636105,90231.0,90230.0,0.00089578]
[1765220003349,0.83484033,90231.0,90230.0,0.00089578]
[1765220003548,0.81728033,90231.0,90230.0,0.00089578]
[1765220003896,0.82584033,90231.0,90230.0,0.00089578]
[1765220004106,0.82663347,90231.0,90230.0,0.00089578]
[1765220005370,0.83163347,90231.0,90230.0,0.00089578]
[1765220005923,0.83098218,90231.0,90230.0,0.00089578]
[1765220006126,0.82531875,90231.0,90230.0,0.00089578]
[1765220008554,0.69927947,90231.0,90230.0,0.00089578]
[1765220008839,0.71683947,90231.0,90230.0,0.00089578]
[1765220011959,0.71683947,90231.0,90200.0,0.0002]
[1765220011961,0.30644601,90201.0,90200.0,0.0002]
[1765220012147,0.70969672,90201.0,90200.0,0.0002]
[1765220012347,0.80505603,90201.0,90200.0,0.0002]
[1765220012663,0.80505603,90201.0,90200.0,0.00109622]
[1765220013226,0.80422226,90201.0,90200.0,0.00109622]
[1765220013626,0.80422226,90201.0,90200.0,1e-08]
[1765220013867,0.82783635,90201.0,90200.0,1e-08]
[1765220014232,0.24400171,90169.0,90157.0,0.01109176]